Workbook

Sheet 计量设备检定、校准
A1: 附件一
A2: 计量设备安装、拆除计价情况
A3: 文件要求： （一）应用户要求，对其计量设备检定、校准，以及相应的计量设备安装及拆除产生的费用，包含材料费用、检定费、校准费、安装工程服务费用。 （二）按照“谁委托、谁付费”原则，检定费用由委托方支付，但计量装置经检定确有问题的，由供水企业承担检定费用，并免费为用户更换合格的计量装置。
A4: 工作流程： 应用户要求、对其计量设备检定、校准的工作流程：由用户申请计量设备检定、校准；我司收到申请后，预约用户到水表位置，与用户进行工作交底；拆除水表，封装水表；由用户把水表送到第三方检测出检测，检测完成后如水表准确，则用户把水表送回自来水公司或原水表位置处；我司派人对检核后的水表进行复装；费用由用户支付。如：水表校准有误，则所有费用全免。
A5: 表径 | B5: 水表类型 | C5: 拆除、复装水表所需工时（多少人工/小时） | D5: 拆除、复装机械工时（载货汽车吨位/小时） | E5: 按工料计价计算（含税） | H5: 按相关定额标准计价(不含水表价格） | I5: 工料计价/定额计价
E6: 工料计算组成 | G6: 合计 | H6: 合计
E7: 人工 | F7: 机械费
A8: DN15 | B8: LXS-15F旋翼式液封表 | C8: 2人/2小时 | D8: 1.5T/3小时 | E8: =315/8*4 -> 157.5 | F8: =86.84*3 -> 260.52 | G8: =E8+F8 -> 418.02 | H8: 154.27 | I8: =G8/H8 -> 2.71
A9: DN20 | B9: LXS-20F旋翼式液封表 | C9: 2人/2小时 | D9: 1.5T/3小时 | E9: =315/8*4 -> 157.5 | F9: =86.84*3 -> 260.52 | G9: =E9+F9 -> 418.02 | H9: 154.27 | I9: =G9/H9 -> 2.71
A10: DN25 | B10: LXS-25F旋翼式液封表 | C10: 2人/2.5小时 | D10: 1.5T/3.5小时 | E10: =315/8*5 -> 196.88 | F10: =86.84*3.5 -> 303.94 | G10: 500.82 | H10: 201.58 | I10: 2.48
A11: DN40 | B11: LXS-40F旋翼式液封表 | C11: 2人/2.5小时 | D11: 1.5T/3.5小时 | E11: =315/8*5 -> 196.88 | F11: =86.84*3.5 -> 303.94 | G11: 500.82 | H11: 299.42 | I11: 1.67
A12: DN50 | B12: LXS-50F旋翼式液封表 | C12: 2人/3小时 | D12: 1.5T/4小时 | E12: =315/8*6 -> 236.25 | F12: =86.84*4 -> 347.36 | G12: 583.61 | H12: 299.42 | I12: 1.95
A13: DN80 | B13: WS垂直螺翼式表 | C13: 4人/3.5小时 | D13: 1.5T/4.5小时 | E13: =315/8*14 -> 551.25 | F13: =86.84*4.5 -> 390.78 | G13: 942.03 | H13: 405.80 | I13: 2.32
A14: DN100 | B14: WS垂直螺翼式表 | C14: 4人/4小时 | D14: 1.5T/5小时 | E14: =315/8*16 -> 630 | F14: =86.84*5 -> 434.2 | G14: 1064.20 | H14: 529.79 | I14: 2.01
A15: DN150 | B15: WS垂直螺翼式表 | C15: 5人/4.5小时 | D15: 1.5T/5.5小时 | E15: =315/8*22.5 -> 885.94 | F15: =86.84*5.5 -> 477.62 | G15: 1363.56 | H15: 745.63 | I15: 1.83
A16: DN200 | B16: WS垂直螺翼式表 | C16: 6人/5小时 | D16: 1.5T/6小时 | E16: =315/8*30 -> 1181.25 | F16: =86.84*6 -> 521.04 | G16: 1702.29 | H16: 995.53 | I16: 1.71
A17: DN250 | B17: LXLC可拆卸螺翼式表 | C17: 6人/5.5小时 | D17: 1.5T/6.5小时 | E17: =315/8*33 -> 1299.38 | F17: =86.84*6.5 -> 564.46 | G17: 1863.84 | H17: 1209.83 | I17: 1.54
A18: DN300 | B18: LXLC可拆卸螺翼式表 | C18: 6人/6小时 | D18: 1.5T/7小时 | E18: =315/8*36 -> 1417.5 | F18: =86.84*7 -> 607.88 | G18: 2025.38 | H18: 1579.81 | I18: 1.28
A19: DN20 | B19: 智能山科脉冲表 | C19: 2人/3小时 | D19: 1.5T/4小时 | E19: =315/8*6 -> 236.25 | F19: =86.84*4 -> 347.36 | G19: 583.61 | H19: 154.27 | I19: 3.78
A20: DN20 | B20: 智能立式脉冲表 | C20: 2人/3小时 | D20: 1.5T/4小时 | E20: 236.25 | F20: 347.36 | G20: 583.61 | H20: 154.27 | I20: 3.78
A21: DN20 | B21: 智能浙江宁波表 | C21: 2人/3小时 | D21: 1.5T/4小时 | E21: 236.25 | F21: 347.36 | G21: 583.61 | H21: 154.27 | I21: 3.78
A22: DN20 | B22: 智能北京京源表 | C22: 2人/3小时 | D22: 1.5T/4小时 | E22: 236.25 | F22: 347.36 | G22: 583.61 | H22: 154.27 | I22: 3.78
A23: DN20 | B23: 智能NB无线表 | C23: 2人/3小时 | D23: 1.5T/4小时 | E23: 236.25 | F23: 347.36 | G23: 583.61 | H23: 154.27 | I23: 3.78
A24: DN20 | B24: 智能山科摄像表 | C24: 2人/3小时 | D24: 1.5T/4小时 | E24: 236.25 | F24: 347.36 | G24: 583.61 | H24: 154.27 | I24: 3.78
A25: DN25 | B25: 智能山科脉冲表 | C25: 2人/3.5小时 | D25: 1.5T/4.5小时 | E25: =315/8*7 -> 275.625 | F25: =86.84*4.5 -> 390.78 | G25: 666.41 | H25: 201.58 | I25: 3.31
A26: DN25 | B26: 智能浙江宁波表 | C26: 2人/3.5小时 | D26: 1.5T/4.5小时 | E26: / | F26: / | G26: / | H26: / | I26: /
A27: DN25 | B27: 智能北京京源表 | C27: 2人/3.5小时 | D27: 1.5T/4.5小时 | E27: 275.625 | F27: =86.84*4.5 -> 390.78 | G27: =E27+F27 -> 666.41 | H27: 201.58 | I27: 3.31
A28: DN25 | B28: 智能NB无线表 | C28: 2人/3.5小时 | D28: 1.5T/4.5小时 | E28: 275.625 | F28: =86.84*4.5 -> 390.78 | G28: =E28+F28 -> 666.41 | H28: 201.58 | I28: 3.31
A29: DN40 | B29: 智能山科脉冲表 | C29: 2人/3.5小时 | D29: 1.5T/4.5小时 | E29: 275.625 | F29: =86.84*4.5 -> 390.78 | G29: =E29+F29 -> 666.41 | H29: 299.42 | I29: 2.23
A30: DN40 | B30: 智能浙江宁波表 | C30: 2人/3.5小时 | D30: 1.5T/4.5小时 | E30: / | F30: / | G30: / | H30: / | I30: /
A31: DN40 | B31: 智能北京京源表 | C31: 2人/3.5小时 | D31: 1.5T/4.5小时 | E31: =315/8*7 -> 275.625 | F31: =86.84*4.5 -> 390.78 | G31: =E31+F31 -> 666.41 | H31: 299.42 | I31: 2.23
A32: DN40 | B32: 智能NB无线表 | C32: 2人/3.5小时 | D32: 1.5T/4.5小时 | E32: =315/8*7 -> 275.625 | F32: =86.84*4.5 -> 390.78 | G32: =E32+F32 -> 666.41 | H32: 299.42 | I32: 2.23
A33: DN50 | B33: 智能山科脉冲表 | C33: 2人/4小时 | D33: 1.5T/5小时 | E33: =315/8*8 -> 315 | F33: =86.84*5 -> 434.2 | G33: =E33+F33 -> 749.20 | H33: 299.42 | I33: 2.50
A34: DN50 | B34: 智能浙江宁波表 | C34: 2人/4小时 | D34: 1.5T/5小时 | E34: / | F34: / | G34: / | H34: / | I34: /
A35: DN50 | B35: 智能北京京源表 | C35: 2人/4小时 | D35: 1.5T/5小时 | E35: 315 | F35: =86.84*5 -> 434.2 | G35: =+E35+F35 -> 749.20 | H35: 299.42 | I35: 2.50
A36: DN50 | B36: 智能NB无线表 | C36: 2人/4小时 | D36: 1.5T/5小时 | E36: 315 | F36: =86.84*5 -> 434.2 | G36: =+E36+F36 -> 749.20 | H36: 299.42 | I36: 2.50
A37: DN80 | B37: 远传表 | C37: 4人/4.5小时 | D37: 1.5T/5.5小时 | E37: =315/8*18 -> 708.75 | F37: =86.84*5.5 -> 477.62 | G37: 1186.37 | H37: 405.8 | I37: 2.92
A38: DN100 | B38: 远传表 | C38: 4人/5小时 | D38: 1.5T/6小时 | E38: =315/8*20 -> 787.5 | F38: =86.84*6 -> 521.04 | G38: 1308.54 | H38: 529.79 | I38: 2.47
A39: DN150 | B39: 远传表 | C39: 5人/5.5小时 | D39: 1.5T/6.5小时 | E39: =315/8*27.5 -> 1082.81 | F39: =86.84*6.5 -> 564.46 | G39: 1647.27 | H39: 745.63 | I39: 2.21
A40: DN200 | B40: 远传表 | C40: 6人/5.5小时 | D40: 1.5T/6小时 | E40: =315/8*33 -> 1299.38 | F40: =86.84*6 -> 521.04 | G40: 1820.42 | H40: 995.53 | I40: 1.83
A41: DN250 | B41: 远传表 | C41: 6人/6.5小时 | D41: 1.5T/7.5小时 | E41: =315/8*39 -> 1535.63 | F41: =86.84*7.5 -> 651.3 | G41: 2186.93 | H41: 1209.83 | I41: 1.81
A42: DN300 | B42: 远传表 | C42: 6人/7小时 | D42: 1.5T/8小时 | E42: =315/8*42 -> 1653.75 | F42: =86.84*8 -> 694.72 | G42: 2348.47 | H42: 1575.71 | I42: 1.49
A43: 备注：1、人工单价按《广州市建设工程造价管理站关于发布2021年9月份广州市建设工程价格信息及有关计价办法的通知》管工单价 315元/工日（8小时）计算。 2、机械费按《广东省市政工程综合定额2018》计算，计算结果为:694.65元/台班（8小时）。 3、定额标准计价按照《工程量清单项目计算规范（2013—广东）》、《广东省市政工程综合定额2018》计算。 4、不含围蔽费用。 5、拆除、复装水表所需工时和工程量及机械工时由表务中心提供。 6、不含水表检定费用。

Sheet 计量设备安装、拆除及维护等服务
A1: 附件二
A2: 计量设备更换计价情况
A3: 文件要求： 应用户要求，提供更换或安装水表、改移安装、维护等服务时产生的费用，主要包括材料费用、安装工程服务费用等。
A4: 工作流程： 由用户申请计量设备安装、拆除申请；我司收到申请后，预约用户到水表位置，与用户进行工作交底；按申请要求，对水表进行更换、复装。
A5: 表径 | B5: 水表类型 | C5: 拆除、复装水表所需工时（多少人工/小时） | D5: 拆除、复装机械工时 （载货汽车吨位/小时） | E5: 按工料计价计算（含税） | I5: 按相关定额标准计价(含水表价格） | J5: 工料计价/定额计价
E6: 工料计算组成 | H6: 合计 | I6: 合计
E7: 材料 | F7: 人工 | G7: 机械费
A8: DN15 | B8: LXS-15F旋翼式液封表 | C8: 2人/1小时 | D8: 1.5T/2小时 | E8: 55 | F8: =315/8*2 -> 78.75 | G8: =86.84*2 -> 173.68 | H8: =E8+F8+G8 -> 307.43 | I8: 207.33 | J8: =H8/I8 -> 1.48
A9: DN20 | B9: LXS-20F旋翼式液封表 | C9: 2人/2小时 | D9: 1.5T/2小时 | E9: 60 | F9: =315/8*2 -> 78.75 | G9: =86.84*2 -> 173.68 | H9: 312.43 | I9: 212.15 | J9: =H9/I9 -> 1.47
A10: DN25 | B10: LXS-25F旋翼式液封表 | C10: 2人/1.5小时 | D10: 1.5T/2.5小时 | E10: 85 | F10: =315/8*3 -> 118.13 | G10: =86.84*2.5 -> 217.1 | H10: 420.23 | I10: 283.59 | J10: 1.48
A11: DN40 | B11: LXS-40F旋翼式液封表 | C11: 2人/1.5小时 | D11: 1.5T/2.5小时 | E11: 190 | F11: =315/8*3 -> 118.13 | G11: =86.84*2.5 -> 217.1 | H11: 525.23 | I11: 482.71 | J11: 1.09
A12: DN50 | B12: LXS-50F旋翼式液封表 | C12: 2人/2小时 | D12: 1.5T/3小时 | E12: 280 | F12: =315/8*4 -> 157.5 | G12: =86.84*3 -> 260.52 | H12: 698.02 | I12: 569.51 | J12: 1.23
A13: DN80 | B13: WS垂直螺翼式表 | C13: 4人/2.5小时 | D13: 1.5T/3.5小时 | E13: 930 | F13: =315/8*10 -> 393.75 | G13: =86.84*3.5 -> 303.94 | H13: 1627.69 | I13: 1302.98 | J13: 1.25
A14: DN100 | B14: WS垂直螺翼式表 | C14: 4人/3小时 | D14: 1.5T/4小时 | E14: 1060 | F14: =315/8*12 -> 472.5 | G14: =86.84*4 -> 347.36 | H14: 1879.86 | I14: 1552.28 | J14: 1.21
A15: DN150 | B15: WS垂直螺翼式表 | C15: 5人/3.5小时 | D15: 1.5T/4.5小时 | E15: 1950 | F15: =315/8*17.5 -> 689.06 | G15: =86.84*4.5 -> 390.78 | H15: 3029.84 | I15: 2626.61 | J15: 1.15
A16: DN200 | B16: WS垂直螺翼式表 | C16: 6人/4小时 | D16: 1.5T/5小时 | E16: 3750 | F16: =315/8*24 -> 945 | G16: =86.84*5 -> 434.2 | H16: 5129.20 | I16: 4613.24 | J16: 1.11
A17: DN250 | B17: LXLC可拆卸螺翼式表 | C17: 6人/4.5小时 | D17: 1.5T/5.5小时 | E17: 2780 | F17: =315/8*27 -> 1063.13 | G17: =86.84*5.5 -> 477.62 | H17: 4320.75 | I17: 3891.43 | J17: 1.11
A18: DN300 | B18: LXLC可拆卸螺翼式表 | C18: 6人/5小时 | D18: 1.5T/6小时 | E18: 5200 | F18: =315/8*30 -> 1181.25 | G18: =86.84*6 -> 521.04 | H18: 6902.29 | I18: 6595.74 | J18: 1.05
A19: DN20 | B19: 智能山科脉冲表 | C19: 2人/2小时 | D19: 1.5T/3小时 | E19: =60+480 -> 540 | F19: =315/8*4 -> 157.5 | G19: =86.84*3 -> 260.52 | H19: 958.02 | I19: 675.16 | J19: 1.42
A20: DN20 | B20: 智能立式脉冲表 | C20: 2人/2小时 | D20: 1.5T/3小时 | E20: 540 | F20: 157.5 | G20: 260.52 | H20: 958.02 | I20: 675.16 | J20: 1.42
A21: DN20 | B21: 智能浙江宁波表 | C21: 2人/2小时 | D21: 1.5T/3小时 | E21: 335 | F21: 157.5 | G21: 260.52 | H21: 753.02 | I21: 477.42 | J21: 1.58
A22: DN20 | B22: 智能北京京源表 | C22: 2人/2小时 | D22: 1.5T/3小时 | E22: 340 | F22: 157.5 | G22: 260.52 | H22: 758.02 | I22: 482.24 | J22: 1.57
A23: DN20 | B23: 智能NB无线表 | C23: 2人/2小时 | D23: 1.5T/3小时 | E23: 282.5 | F23: 157.5 | G23: 260.52 | H23: 700.52 | I23: 426.77 | J23: 1.64
A24: DN20 | B24: 智能山科摄像表 | C24: 2人/2小时 | D24: 1.5T/3小时 | E24: =60+480 -> 540 | F24: 157.5 | G24: 260.52 | H24: 958.02 | I24: 675.16 | J24: 1.42
A25: DN25 | B25: 智能山科脉冲表 | C25: 2人/2.5小时 | D25: 1.5T/3.5小时 | E25: =85+480 -> 565 | F25: =315/8*5 -> 196.88 | G25: =86.84*3.5 -> 303.94 | H25: 1065.82 | I25: 746.58 | J25: 1.43
A26: DN25 | B26: 智能浙江宁波表 | C26: 2人/2.5小时 | D26: 1.5T/3.5小时 | E26: / | F26: / | G26: / | H26: / | I26: / | J26: /
A27: DN25 | B27: 智能北京京源表 | C27: 2人/2.5小时 | D27: 1.5T/3.5小时 | E27: 490 | F27: 196.88 | G27: =86.84*3.5 -> 303.94 | H27: =E27+F27+G27 -> 990.82 | I27: 674.24 | J27: 1.47
A28: DN25 | B28: 智能NB无线表 | C28: 2人/2.5小时 | D28: 1.5T/3.5小时 | E28: 301 | F28: 196.88 | G28: =86.84*3.5 -> 303.94 | H28: 801.82 | I28: 491.94 | J28: 1.63
A29: DN40 | B29: 智能山科脉冲表 | C29: 2人/2.5小时 | D29: 1.5T/3.5小时 | E29: =190+480 -> 670 | F29: 196.88 | G29: =86.84*3.5 -> 303.94 | H29: 1170.82 | I29: 945.72 | J29: 1.24
A30: DN40 | B30: 智能浙江宁波表 | C30: 2人/2.5小时 | D30: 1.5T/3.5小时 | E30: / | F30: / | G30: / | H30: / | I30: / | J30: /
A31: DN40 | B31: 智能北京京源表 | C31: 2人/2.5小时 | D31: 1.5T/3.5小时 | E31: 1100 | F31: =315/8*5 -> 196.88 | G31: =86.84*3.5 -> 303.94 | H31: =E31+F31+G31 -> 1600.82 | I31: 1360.49 | J31: 1.18
A32: DN40 | B32: 智能NB无线表 | C32: 2人/2.5小时 | D32: 1.5T/3.5小时 | E32: 975 | F32: =315/8*5 -> 196.88 | G32: =86.84*3.5 -> 303.94 | H32: 1475.82 | I32: 1239.92 | J32: 1.19
A33: DN50 | B33: 智能山科脉冲表 | C33: 2人/3小时 | D33: 1.5T/4小时 | E33: =280+480 -> 760 | F33: =315/8*6 -> 236.25 | G33: =86.84*4 -> 347.36 | H33: 1343.61 | I33: 1032.52 | J33: 1.30
A34: DN50 | B34: 智能浙江宁波表 | C34: 2人/3小时 | D34: 1.5T/4小时 | E34: / | F34: / | G34: / | H34: / | I34: / | J34: /
A35: DN50 | B35: 智能北京京源表 | C35: 2人/3小时 | D35: 1.5T/4小时 | E35: 1910 | F35: =315/8*6 -> 236.25 | G35: =86.84*4 -> 347.36 | H35: =E35+F35+G35 -> 2493.61 | I35: 2141.82 | J35: 1.16
A36: DN50 | B36: 智能NB无线表 | C36: 2人/3小时 | D36: 1.5T/4小时 | E36: 1787 | F36: =315/8*6 -> 236.25 | G36: =86.84*4 -> 347.36 | H36: 2370.61 | I36: 2023.17 | J36: 1.17
A37: DN80 | B37: 远传表 | C37: 4人/3.5小时 | D37: 1.5T/4.5小时 | E37: 2290 | F37: =315/8*14 -> 551.25 | G37: =86.84*4.5 -> 390.78 | H37: 3232.03 | I37: 2614.74 | J37: 1.24
A38: DN100 | B38: 远传表 | C38: 4人/4小时 | D38: 1.5T/5小时 | E38: 2480 | F38: =315/8*16 -> 630 | G38: =86.84*5 -> 434.2 | H38: 3544.20 | I38: 2922.02 | J38: 1.21
A39: DN150 | B39: 远传表 | C39: 5人/4.5小时 | D39: 1.5T/5.5小时 | E39: 3590 | F39: =315/8*22.5 -> 885.94 | G39: =86.84*5.5 -> 477.62 | H39: 4953.56 | I39: 4208.56 | J39: 1.18
A40: DN200 | B40: 远传表 | C40: 6人/5小时 | D40: 1.5T/6小时 | E40: 4750 | F40: =315/8*30 -> 1181.25 | G40: =86.84*6 -> 521.04 | H40: 6452.29 | I40: 5577.39 | J40: 1.16
A41: DN250 | B41: 远传表 | C41: 6人/5.5小时 | D41: 1.5T/6.5小时 | E41: 5800 | F41: =315/8*39 -> 1535.63 | G41: =86.84*6.5 -> 564.46 | H41: 7900.09 | I41: 6804.53 | J41: 1.16
A42: DN300 | B42: 远传表 | C42: 6人/6小时 | D42: 1.5T/7小时 | E42: 9900 | F42: =315/8*36 -> 1417.5 | G42: =86.84*7 -> 607.88 | H42: 11925.38 | I42: 11125.28 | J42: 1.07
A43: 备注：1、人工单价按《广州市建设工程造价管理站关于发布2021年9月份广州市建设工程价格信息及有关计价办法的通知》管 工单价315元/工日（8小时）计算。 2、机械费按《广东省市政工程综合定额2018》计算，计算结果为:694.65元/台班（8小时）。 3、定额标准计价按照《工程量清单项目计算规范（2013—广东）》、《广东省市政工程综合定额2018》计算。 4、不含围蔽费用。 5、拆除、复装水表所需工时及机械工时工程量由表务中心提供。 6、工料计价水表价格按采购合同部提供的材料采购价计算。
